Cogmind - Beta 14 @@@ ROGUE MODE // 2025.03.18 @ 22:09:59 Player: GiggleBox Result: Destroyed by G-47 Trooper with Particle Gun Performance ------------- Evolutions (3) 1500 Regions Visited (4) 800 Robots Destroyed (39) 195 Value Destroyed (1024) 1024 Prototype IDs (4) 80 Alien Tech Used (0) 0 Bonus (-38) -38 TOTAL SCORE: 3561 Bonus ------- Friendly Fire -38 Cogmind --------- Core Integrity 0/700 Matter 235/300 Energy 110/240 System Corruption 0% Temperature Cool (24) Movement Core (950) Ox18 Location -7/Factory Parts ------- > --- POWER (2) -------- Nuclear Core > --- PROPULSION (4) --- (None) > --- UTILITY (5) ------ Large Storage Unit Large Storage Unit Improved Melee Analysis Suite > --- WEAPON (2) ------- Flak Gun Flak Gun > --- INVENTORY (15) --- Light Ion Engine Light Nuclear Core Light Nuclear Core Coolant Injector Advanced ECM Suite V3-11A's Pendant Assault Rifle Battle Rifle Grenade Launcher Piercing Trap Peak State ------------ > --- POWER ------------ Improved Ion Engine Deuterium Engine > --- PROPULSION ------- Carbon-fiber Leg Carbon-fiber Leg Armored Wheel Armored Wheel > --- UTILITY ---------- Improved Heat Sink Large Storage Unit Improved Medium Armor Plating Scrap Shield > --- WEAPON ----------- Beamcaster Impact Mace > --- INVENTORY -------- Light Ion Engine Light Nuclear Core Aluminum Leg Coolant Injector Large Storage Unit V3-11A's Pendant Assault Rifle Battle Rifle Flak Gun Flak Gun Flak Gun Grenade Launcher Piercing Trap [Rating: 40] Favorites ----------- Power Subdweller Power Source Engine Subdweller Power Source Power Core Nuclear Core Propulsion Aluminum Leg Leg Aluminum Leg Wheel Armored Wheel Utility Large Storage Unit Device Improved Heat Sink Storage Large Storage Unit Processor Improved Melee Analysis Suite Protection Improved Medium Armor Plating Weapon Medium Laser Energy Gun Medium Laser Ballistic Gun Barrage Gun Ballistic Cannon Battle Cannon Launcher Grenade Launcher Impact Weapon Mace Build | -11 -10 -10 -9 -7 ------- Run | Yrd Mat Sub Rec Fac Slots Evolved 6 | . . . . 6 Power 1 | . . . . 1 Propulsion 2 | . . . . 2 Utility 3 | . . . . 3 Weapon . | . . . . . Parts Attached 65 | 8 9 20 8 20 Power 9 | 1 . 3 2 3 Engine 8 | 1 . 3 2 2 Core 1 | . . . . 1 Reactor . | . . . . . Propulsion 10 | 2 . 1 3 4 Treads . | . . . . . Leg 7 | 2 . 1 . 4 Wheel 3 | . . . 3 . Hover . | . . . . . Flight . | . . . . . Utility 16 | 2 1 5 . 8 Device 9 | 1 . 5 . 3 Storage 3 | 1 1 . . 1 Processor 1 | . . . . 1 Hackware . | . . . . . Protection 3 | . . . . 3 Artifact . | . . . . . Weapon 30 | 3 8 11 3 5 Energy Gun 11 | 2 4 4 . 1 Energy Cannon . | . . . . . Ballistic Gun 7 | 1 . 2 1 3 Ballistic Cannon 2 | . . 1 1 . Launcher 2 | . . 2 . . Special Weapon . | . . . . . Impact Weapon 8 | . 4 2 1 1 Slashing Weapon . | . . . . . Piercing Weapon . | . . . . . Special Melee Weapon . | . . . . . Unidentified Prototypes 2 | . . 1 . 1 Parts Lost 20 | . . 2 1 17 Power 2 | . . . . 2 Propulsion 8 | . . 1 1 6 Utility 6 | . . 1 . 5 Weapon 4 | . . . . 4 Highest Loss Streak 11 | . . 1 1 11 To Critical Strikes . | . . . . . Average Slot Usage (%) 96 | . 100 99 99 85 Engine 14 | . 14 14 14 14 Leg 25 | . 28 27 27 16 Wheel 2 | . . . . 10 Device 13 | . 14 13 14 10 Storage 12 | . 14 14 14 7 Protection 2 | . . . . 9 Energy Gun 10 | . 22 16 . 2 Ballistic Gun 4 | . . 6 7 3 Ballistic Cannon 3 | . . 1 13 1 Impact Weapon 5 | . 5 3 6 4 Peak Build Rating 40 | 7 8 17 17 40 Average Rating 16 | 4 7 14 13 32 On Entrance 9 | . 7 8 15 17 Naked Turns . | . . . . . Heaviest Build 70 | 13 28 34 34 70 Greatest Support 35 | 20 20 20 24 35 Greatest Overweight (x) 7 | . 1 1 3 7 Average Overweight (x) . | . . 1 1 1 Largest Inventory Capacity 15 | 8 15 15 15 15 Average Capacity 14 | 6 10 15 15 15 Most Carried 15 | 4 9 15 15 15 Average Carried 12 | 1 6 14 13 13 Final Capacity 15 | 8 15 15 15 15 Final Carried 15 | 2 9 14 15 10 Class Distribution -------------------- 94% | Mutant 5% | Scavenger-Mutant Dominant Class ---------------- Mutant | -10/Materials Mutant | -10/Subcaves Mutant | -9/Recycling Mutant | -7/Factory Resources | -11 -10 -10 -9 -7 ----------- Run | Yrd Mat Sub Rec Fac Matter Collected 1118 | 203 123 332 231 229 Remotely . | . . . . . Salvage Created 1155 | 91 135 79 215 635 Parts 67 | 11 14 10 14 18 Haulers Intercepted . | . . . . . Recyclers Shooed 2 | . . . 1 1 Parts Field Recycled . | . . . . . Retrieved Matter . | . . . . . Parts Self-Destructed 19 | . . 19 . . Prevented . | . . . . . Kills | -11 -10 -10 -9 -7 ------- Run | Yrd Mat Sub Rec Fac Combat Hostiles Destroyed 24 | . 3 5 3 13 Melee 4 | . . . . 4 Guns 12 | . 3 3 2 4 Cannons 2 | . . . 1 1 AOE 2 | . . 2 . . Classes Destroyed 13 | 2 2 2 2 5 Worker 4 | 2 . . . 2 Tunneler 3 | 3 . . . . Recycler 2 | . . . 1 1 Operator 1 | . . . . 1 Turret 2 | . . 2 . . Watcher 3 | . 3 . . . Swarmer 10 | . 3 4 . 3 Grunt 4 | . . . . 4 Duelist 1 | . . . . 1 Sentry 5 | . . . 3 2 Hunter 2 | . . . . 2 Programmer 1 | . . . . 1 Subdweller 1 | . . 1 . . Best Kill Streak 7 | 3 3 2 1 7 Combat Bots Only 4 | . 3 2 1 4 Max Kills in Single Turn 2 | 1 2 2 1 2 Gunslinging 1 | . 1 . . 1 Exploded 1 | . . 1 . . Melee 1 | . . . . 1 Uniques/NPCs Destroyed . | . . . . . Combat | -11 -10 -10 -9 -7 -------- Run | Yrd Mat Sub Rec Fac Hostile Shots Fired 489 | . 10 97 20 362 Missed 172 | . 4 41 5 122 Damage Taken 3568 | . 50 518 220 2780 Core 885 | . 16 141 14 714 Absorbed by Shields 134 | . . . . 134 Core Remaining (%) 65 | 100 . . 31 . Volleys Fired 88 | 10 10 28 15 25 Largest 2 | 2 2 2 2 2 Hottest 125 | 100 100 125 67 103 Shots Fired 159 | 20 20 50 26 43 Gun 125 | 20 20 41 11 33 Cannon 30 | . . 5 15 10 Launcher 4 | . . 4 . . Special . | . . . . . Kinetic 91 | 2 . 29 26 34 Thermal 64 | 18 20 17 . 9 Explosive 4 | . . 4 . . Electromagnetic . | . . . . . Robot Hit Streak 9 | 3 5 3 8 9 Robot Miss Streak 5 | 5 1 5 2 4 Penetration Max . | . . . . . Secondary Targets 3 | . 1 1 . 1 Max Gunslinging Chain 1 | . 1 1 . 1 Shots Hit Robots 117 | 9 13 22 17 56 Core Hits 54 | 5 6 11 6 26 Critical Kills 1 | . . . . 1 Critical Parts Destroyed 6 | . . . . 6 Critical Strikes 13 | 2 2 1 1 7 Burn 5 | 2 2 1 . . Blast 1 | . . . 1 . Smash 7 | . . . . 7 Melee Attacks 58 | . 11 3 . 44 Impact 58 | . 11 3 . 44 Slashing . | . . . . . Piercing . | . . . . . Sneak Attacks 5 | . . 1 . 4 Combat Hostiles . | . . . . . Follow-up Attacks . | . . . . . Damage Inflicted 3318 | 125 164 513 351 2165 Guns 1217 | 125 164 319 135 474 Cannons 382 | . . 41 216 125 Explosions 117 | . . 117 . . Melee 1598 | . . 36 . 1562 Ramming 4 | . . . . 4 Kinetic 1068 | 11 . 230 351 476 Thermal 531 | 114 164 130 . 123 Explosive 117 | . . 117 . . Electromagnetic . | . . . . . Impact 1598 | . . 36 . 1562 Slashing . | . . . . . Piercing . | . . . . . Highest Corruption 2 | . . . . 2 Average Corruption 1 | . . . . 1 Corruption Purged 2 | . . . . 2 Corruption Blocked . | . . . . . Effects 6 | . . . . 6 Message Errors 1 | . . . . 1 Matter Fused 1 | . . . . 1 Heat Flow Errors 1 | . . . . 1 Energy Discharges 2 | . . . . 2 Data Loss (minor) 1 | . . . . 1 Overload Shots . | . . . . . Overflow Damage 424 | . . . . 424 Projectiles . | . . . . . Explosions . | . . . . . Melee 424 | . . . . 424 Knockbacks 8 | . . 1 2 5 Impact 5 | . . . . 5 Kinetic 3 | . . 1 2 . Secondary . | . . . . . Self-Inflicted Damage 1 | . . . . 1 Shots . | . . . . . Rammed 3 | . . . . 3 Targets Rammed 3 | . . . . 3 Kicked . | . . . . . Crushed . | . . . . . Highest Temperature 117 | 102 117 11 9 109 Average Temperature 33 | 42 44 3 6 22 Received Heat Transfer 1140 | . . 252 99 789 Siege Activations . | . . . . . Robots Corrupted 6 | . . . . 6 Combat Hostiles 4 | . . . . 4 Parts Fried 8 | . . . . 8 Impact Corruptions 18 | . . . . 18 Robots Melted . | . . . . . Combat Hostiles . | . . . . . Parts Melted 7 | 4 1 . . 2 Heat Transferred 1739 | 481 629 407 . 222 Parts Sabotaged . | . . . . . Parts Stolen . | . . . . . Parts Stripped . | . . . . . Power Chain Reactions . | . . . . . Alert | -11 -10 -10 -9 -7 ------- Run | Yrd Mat Sub Rec Fac Peak Influence 159 | 25 151 . 90 159 Initial 70 | . 16 . 70 8 Average 46 | 5 59 . 35 51 Maximum Alert Level . | . . . . . Low Security (%) 100 | 100 100 . 100 100 Level 1 . | . . . . . Level 2 . | . . . . . Level 3 . | . . . . . Level 4 . | . . . . . Level 5 . | . . . . . High Security . | . . . . . Max Security . | . . . . . Squads Dispatched 9 | . . . . 9 Investigation . | . . . . . Extermination 1 | . . . . 1 Reinforcement 3 | . . . . 3 Assault . | . . . . . Garrison 5 | . . . . 5 Intercept . | . . . . . Searches Triggered . | . . . . . Construction Impeded . | . . . . . Haulers Reinforced . | . . . . . Active Scanning Responses . | . . . . . Cargo Convoy Interrupts . | . . . . . Stealth | -11 -10 -10 -9 -7 --------- Run | Yrd Mat Sub Rec Fac Distress Signals . | . . . . . Communications Jammed . | . . . . . Distress Signals . | . . . . . Times Spotted 70 | . 9 32 3 26 Peak Tracking Total 5 | . 3 5 1 5 Tactical Retreats 5 | . . 5 . . Traps | -11 -10 -10 -9 -7 ------- Run | Yrd Mat Sub Rec Fac Traps Triggered . | . . . . . Indirectly . | . . . . . Trap Hack Attempts . | . . . . . Triggered . | . . . . . Disarmed 6 | . 6 . . . Reprogrammed . | . . . . . Reused . | . . . . . Traps Extracted . | . . . . . Installed . | . . . . . Triggered . | . . . . . Most Traps Carried 1 | . . 1 1 1 Machines | -11 -10 -10 -9 -7 ---------- Run | Yrd Mat Sub Rec Fac Machines Disabled 2 | . . 1 . 1 Max in Single Turn 1 | . . 1 . 1 Garrison Access 1 | . . . . 1 Machines Repaired . | . . . . . Machines Dismantled . | . . . . . Machines Sabotaged . | . . . . . Overloaded Fab Kills . | . . . . . Hacking | -11 -10 -10 -9 -7 --------- Run | Yrd Mat Sub Rec Fac Machines Accessed 15 | . 8 . 5 2 Terminals 14 | . 8 . 5 1 Fabricators . | . . . . . Repair Stations . | . . . . . Recycling Units . | . . . . . Scanalyzers . | . . . . . Garrison Access 1 | . . . . 1 Total Hacks 46 | . 31 . 12 3 Successful 24 | . 18 . 4 2 Failed 22 | . 13 . 8 1 Catastrophic 1 | . . . 1 . Database Lockouts . | . . . . . Manual 42 | . 30 . 12 . Terminals 44 | . 31 . 12 1 Fabricators . | . . . . . Repair Stations . | . . . . . Recycling Units . | . . . . . Scanalyzers . | . . . . . Garrison Access 2 | . . . . 2 Terminal Hacks 9 | . 6 . 2 1 Prototype ID Bank 1 | . 1 . . . Open DSF 1 | . . . . 1 Terminal Index 2 | . 1 . 1 . Alert Level 1 | . . . 1 . Locate Traps 3 | . 3 . . . Disarm Traps 1 | . 1 . . . Fabricator Hacks . | . . . . . Repair Station Hacks . | . . . . . Recycling Unit Hacks . | . . . . . Scanalyzer . | . . . . . Garrison Access Hacks 1 | . . . . 1 Seal Access 1 | . . . . 1 Unauthorized Hacks 14 | . 12 . 2 . Terminals 14 | . 12 . 2 . Track 4 | . 4 . . . Botnet 5 | . 3 . 2 . Skim 5 | . 5 . . . Fabricators . | . . . . . Repair Stations . | . . . . . Recycling Units . | . . . . . Scanalyzers . | . . . . . Garrison Access . | . . . . . Data Cores Recovered . | . . . . . Used . | . . . . . Hacking Detections 13 | . 8 . 4 1 Full Trace Events . | . . . . . Feedback Events . | . . . . . Feedback Blocked . | . . . . . Robot Schematics Acquired . | . . . . . Robots Built . | . . . . . Authchips . | . . . . . Time . | . . . . . Total Robot Build Rating . | . . . . . Part Schematics Acquired . | . . . . . Parts Built . | . . . . . Authchips . | . . . . . Time . | . . . . . Total Part Build Rating . | . . . . . Parts Repaired . | . . . . . Time . | . . . . . Parts Recycled . | . . . . . Recycled Matter . | . . . . . Retrieved Matter . | . . . . . Retrieved Components . | . . . . . Parts Scanalyzed . | . . . . . Part Schematics Acquired . | . . . . . Parts Damaged . | . . . . . Bothacking | -11 -10 -10 -9 -7 ------------ Run | Yrd Mat Sub Rec Fac Used RIF Installer . | . . . . . Robots Hacked . | . . . . . Non-combat . | . . . . . Combat . | . . . . . Robot Hacks Applied . | . . . . . Relay Couplers Released . | . . . . . Fabnet Peak Effective % . | . . . . . Robots Rewired . | . . . . . Allies Hacked . | . . . . . Hacks Repelled . | . . . . . Allies | -11 -10 -10 -9 -7 -------- Run | Yrd Mat Sub Rec Fac Total Allies 2 | . . 2 . . Largest Group 1 | . . 1 . . Highest-Rated Group 19 | . . 19 . . Highest-Rated Ally 19 | . . 19 . . Total Orders . | . . . . . Ally Attacks 5 | . . 5 . . Total Damage 43 | . . 43 . . Kills . | . . . . . Allies Corrupted . | . . . . . Allies Melted . | . . . . . Intel | -11 -10 -10 -9 -7 ------- Run | Yrd Mat Sub Rec Fac Robot Analysis Total . | . . . . . Derelict Logs Recovered 2 | . . 2 . . Drone Launches . | . . . . . Drone Recoveries . | . . . . . Exploration | -11 -10 -10 -9 -7 ------------- Run | Yrd Mat Sub Rec Fac Turns Passed 5741 | 115 937 2143 1289 1257 Spaces Moved 2982 | 61 568 1049 646 658 Core 6 | 4 . . . 2 Treads . | . . . . . Legs 2561 | 57 568 1049 630 257 Wheels 415 | . . . 16 399 Hover . | . . . . . Flight . | . . . . . Fastest Speed 50 | 50 120 190 105 105 Average Speed 168 | 115 133 190 189 148 Slowest Speed 400 | 120 190 190 330 400 Overloaded Moves . | . . . . . Propulsion Burnouts . | . . . . . Robots Hopped . | . . . . . Cave-ins Triggered . | . . . . . Exploration Rate (%) 53 | 4 78 65 95 23 Regions Visited 4 Branch Regions 2 Pre-discovered Areas 5 | . 2 3 . . Known Exits Taken 1 | . 1 . . . Unknown Exits Taken 3 | 1 . 1 1 . Scrap Searched 4 | . . 4 . . Spaces Dug 15 | . 8 1 . 6 Terrain Destroyed 42 | . 8 25 3 6 Melee 15 | . 8 1 . 6 Projectile 5 | . . 2 3 . AOE 22 | . . 22 . . Terrain Rammed . | . . . . . Walls Destroyed . | . . . . . Machines Disabled . | . . . . . Actions | -11 -10 -10 -9 -7 --------- Run | Yrd Mat Sub Rec Fac Total 3429 | 83 705 1143 682 816 Wait 178 | . 101 22 9 46 Move 2978 | 60 567 1048 645 658 Hop . | . . . . . Pick Up 40 | 5 6 13 2 14 Fast Attach 9 | 4 . . 1 4 Attach 24 | 3 1 5 1 14 Detach 5 | . 1 2 1 1 Swap 32 | 1 8 15 6 2 Drop 14 | . . 7 2 5 Fire 88 | 10 10 28 15 25 Melee 58 | . 11 3 . 44 Ram 3 | . . . . 3 Kick . | . . . . . Crush . | . . . . . Escape Stasis . | . . . . . Rewire . | . . . . . Trap . | . . . . . Miscellaneous . | . . . . . Route ------- -11/Scrapyard -10/Materials (discovered 5 exits: *Mat x3 / [*Min] / *Sub) -10/Subcaves (discovered 2 exits: *Mat / *Rec) -9/Recycling -7/Factory History --------- Turn | Location | Event 3 | -11/Scrapyard | Discovered new exit (range 16) 116 | -11/Scrapyard | Entered Materials 309 | -10/Materials | Discovered new exit (range 8) 317 | -10/Materials | Build established: Mutant 461 | -10/Materials | Discovered new exit (range 9) 773 | -10/Materials | Discovered new exit (range 9) 948 | -10/Materials | Identified exit to Materials 981 | -10/Materials | Learned 4 Subcaves zone layouts 1002 | -10/Materials | Learned Storage trap positions 1013 | -10/Materials | Identified exit to Subcaves 1025 | -10/Materials | Learned location of Storage (-9) 1047 | -10/Materials | Learned Storage trap positions 1053 | -10/Materials | Entered Subcaves 1054 | -10/Subcaves | Identified exit to Materials 1218 | -10/Subcaves | Ambushed by swarm of Subdwellers 1304 | -10/Subcaves | Shifting Twisted Machinery released Humpback 1316 | -10/Subcaves | Shifting Twisted Machinery released Sub. Beam Cannon 1361 | -10/Subcaves | Disturbed a concealed Subdweller 1504 | -10/Subcaves | A swath of the cavern ceiling suddenly collapsed 1509 | -10/Subcaves | Learned location of Zion (-7) 1509 | -10/Subcaves | Met a Zionite searching for "candidates" 2031 | -10/Subcaves | Shifting Twisted Machinery released Sub. Monowheel 2172 | -10/Subcaves | Shifting Twisted Machinery released Sub. Monowheel 2176 | -10/Subcaves | Shifting Twisted Machinery released Barrage Gun 2577 | -10/Subcaves | Visited triangular shrine 2590 | -10/Subcaves | Found Prototype Device 2591 | -10/Subcaves | Identified V3-11A's Pendant 2596 | -10/Subcaves | Befriended Subdweller 2994 | -10/Subcaves | Discovered new exit (range 16) 3081 | -10/Subcaves | Befriended Subdweller 3161 | -10/Subcaves | Core integrity fell below 50% 3196 | -10/Subcaves | Entered Recycling 3197 | -9/Recycling | Met a Zionite searching for Scraptown 3513 | -9/Recycling | Discovered new exit (range 8) 4485 | -9/Recycling | Entered Factory 4485 | -7/Factory | Evolved 6 slots: Power x1, Propulsion x2, Utility x3 4923 | -7/Factory | Garrison activated, responded to threat 5035 | -7/Factory | Garrison activated, responded to threat 5173 | -7/Factory | Lost 4 parts (2n1u1w) 5438 | -7/Factory | Build established: Scavenger-Mutant 5726 | -7/Factory | Core integrity fell below 50% 5734 | -7/Factory | Core integrity fell below 20% 5742 | -7/Factory | Destroyed by G-47 Trooper with Particle Gun Last Messages --------------- 05725_ Penetrated by Slug. 05728_ Slammed into H-55 Commando. 05728_ Penetrated by Slug. 05731_ Slammed into H-55 Commando. 05732_ Y-54 Guardian heat spikes uncontrollably. 05733_ Y-54 Guardian heat damages Gatling Laser. 05735_ Y-54 Guardian heat damages Imp. Deuterium Engine. 05737_ Y-54 Guardian heat short circuits Flak Gun. 05737_ Penetrated by Slug. 05738_ Y-54 Guardian heat spikes uncontrollably. 05738_ Critical hit (Burn: +37). 05740_ Y-54 Guardian heat short circuits Lgt. Treads. 05740_ Penetrated by Slug. 05742_ Y-54 Guardian heat damages core (-10). 05742_ H-55 Commando destroyed. 05742_ Switching to secondary target: Y-54 Guardian. 05742_ Lgt. Treads melted. 05742_ Broken Lgt. Treads melted. 05742_ Y-54 Guardian destroyed. [Achievement: Just Browsing] Map ----- +----------------------------------------------------+ | ?????????????????????????????????????????????????? | | ?????????????????????????????????????????????????? | | ?????????????????????????????????????????????????? | | ?????????????????????????????????????????????????? | | ?????????????????????????????????????????????????? | | ?????????????????????????????????????????????????? | | ?????????????????????????????????????????????????? | | ?????????????????????????????????????????????????? | | ????????????? ???????????????????????????????????? | | ????????????? ???????????????????????????????????? | | ????????????? ???????????????????????????????????? | | ????????????? ???????????????????????????????????? | | ????????????? ???????????????????????????????????? | | ????????????# ???????????????????????????????????? | | ????????????# ???????????????????????????????????? | | ????????????# #??????????????????????????????????? | | ????????????# #??????????????????????????????????? | | ?????######## #???????????????????#??????????????? | | ????? # #?????????????????? #??????????????? | | ????? " " " #^#????????????????? #??????????????? | | ????" " " " #^#######?????????? #??????????????? | | ????" " " " # #?????????# ##?????????????? | | ??? " " " " # ########## #?????????????? | | ??? " " " " # T" ! g g ### " ????????? | | ??? " " " " o " =%* "T????????? | | ??" " " " " # [=@ % #?????????????? | | ? " " " " " # #######+## #?????????????? | | " " " " " # #????? #??+###?????????????? | | ## ##????? " #???????????????????? | | ! ## #????? " #???????????????????? | | ############## ##???? " #???????????????????? | | ???????####### T#??? " #???????????????????? | | ??????? ! # #??? " #???????????????????? | | #?????? # ##?? ? #???????????????????? | | #??????""""" # #??? ? #???????????????????? | | #??????""""" # #?? ? #???????????????????? | | ??????"""""" # #?? / ? #???????????????????? | | ???# """"""" # #?# ???#???????????????????? | | ???# + #?#####???????????????????????? | | ???# # #?????????????????????????????? | | ############## #?????????????????????????????? | | # ## #?????????????????????????????? | | # """"""""" ### ####?????????????????????????????? | | # #?# #????????????????????????????????? | | # """"""""" #?# #????????????????????????????????? | | # #?# #????????????????????????????????? | | # """"""""" #?# #????????????????????????????????? | | # #?# #????????????????????????????????? | | # """"""""" ### #????????????????????????????????? | | # ### #????????????????????????????????? | +----------------------------------------------------+ Best States ------------- Heat Dissipation 48 Energy Generation 21 Energy Capacity 440 Matter Stores 300 Matter Capacity 300 Sight Range 21 Terrain Scan Density 10 Armor Coverage 1025 Evasion (%) 55 Melee Accuracy 6 Item Schematics ----------------- None Robot Schematics ------------------ None Fabricated ------------ Nothing Alien Tech Used ----------------- None Achievements -------------- Just Browsing Challenges ------------ None Game ------ Seed DerelictImprovedLegs Manual? 0 Play Time 00:58:16 Cumulative 22.9 hours Start 2025.03.18 @ 21:11:11 End 2025.03.18 @ 22:09:59 Sessions 1 Manual Loads 0 Difficulty Rogue Special Mode None Game No. 32 Rogue 32 Adventurer 0 Explorer 0 Win Type - Total 0 Types 0/0/0/0/0/0/0/0/0 Lore% 5 Gallery% 25 Achievement% 21 Wizard Run 0 Options --------- Layout 0 ASCII 0 Keyboard 1 Movement Numpad Keybinds 0 Fullscreen 1 Font 24/Smallcaps Map View 76x50 Zoom Use 0% Tactical HUD 1 Map Filters NONE Filters NONE Steam 1 RUN: a550f010-cd7e-42c3-865f-660a72ed442b